[Event "Titled Tuesday Blitz December 20 Late 2022"]
[White "Antonio, Jorge Carlos"]
[Black "Piesik, Piotr"]
[WhiteFideId "113190"]
[BlackFideId "1136194"]
[WhiteElo "2247"]
[BlackElo "2316"]
[Result "1-0"]
[Round "05"]
[TimeControl "180+1"]
[Date "2022.12.21"]
[WhiteClock "0:00:17"]
[BlackClock "0:00:52"]

1. d4 {[%clk 0:03:00]}  c5 {[%clk 0:02:57]} 2. Nf3 {[%clk 0:03:00]}  cxd4 {[%clk 0:02:57]} 3. Nxd4 {[%clk 0:02:58]}  d5 {[%clk 0:02:57]} 4. c4 {[%clk 0:02:54]}  dxc4 {[%clk 0:02:57]} 5. e4 {[%clk 0:02:49]}  e5 {[%clk 0:02:56]} 6. Nb5 {[%clk 0:02:46]}  Qxd1+ {[%clk 0:02:56]} 7. Kxd1 {[%clk 0:02:41]}  Na6 {[%clk 0:02:57]} 8. Bxc4 {[%clk 0:02:36]}  Nf6 {[%clk 0:02:54]} 9. f3 {[%clk 0:02:33]}  Bc5 {[%clk 0:02:51]} 10. a3 {[%clk 0:02:29]}  Ke7 {[%clk 0:02:50]} 11. b4 {[%clk 0:02:29]}  Rd8+ {[%clk 0:02:49]} 12. Ke2 {[%clk 0:02:23]}  Bb6 {[%clk 0:02:49]} 13. N1c3 {[%clk 0:02:19]}  Be6 {[%clk 0:02:40]} 14. Bxe6 {[%clk 0:02:12]}  Kxe6 {[%clk 0:02:41]} 15. Be3 {[%clk 0:02:06]}  Rac8 {[%clk 0:02:35]} 16. Rac1 {[%clk 0:02:02]}  Nb8 {[%clk 0:02:19]} 17. Nxa7 {[%clk 0:01:56]}  Bxa7 {[%clk 0:02:16]} 18. Bxa7 {[%clk 0:01:55]}  Nc6 {[%clk 0:02:17]} 19. Bb6 {[%clk 0:01:49]}  Nd4+ {[%clk 0:02:14]} 20. Bxd4 {[%clk 0:01:44]}  Rxd4 {[%clk 0:02:13]} 21. Nb5 {[%clk 0:01:40]}  Rdc4 {[%clk 0:02:11]} 22. Rxc4 {[%clk 0:01:37]}  Rxc4 {[%clk 0:02:12]} 23. Rd1 {[%clk 0:01:34]}  Nd7 {[%clk 0:02:01]} 24. Rd6+ {[%clk 0:01:29]}  Ke7 {[%clk 0:02:01]} 25. Kd2 {[%clk 0:01:25]}  f6 {[%clk 0:01:58]} 26. Rd5 {[%clk 0:01:17]}  Rc6 {[%clk 0:01:51]} 27. Rd3 {[%clk 0:01:09]}  Nb6 {[%clk 0:01:46]} 28. Rc3 {[%clk 0:01:01]}  Nc4+ {[%clk 0:01:45]} 29. Ke2 {[%clk 0:00:55]}  Kd7 {[%clk 0:01:39]} 30. a4 {[%clk 0:00:51]}  g6 {[%clk 0:01:29]} 31. Na7 {[%clk 0:00:46]}  Rc7 {[%clk 0:01:23]} 32. Nb5 {[%clk 0:00:41]}  Rc6 {[%clk 0:01:23]} 33. Na7 {[%clk 0:00:40]}  Rc7 {[%clk 0:01:19]} 34. Nb5 {[%clk 0:00:40]}  Rc8 {[%clk 0:01:19]} 35. Na7 {[%clk 0:00:38]}  Ra8 {[%clk 0:01:17]} 36. Rxc4 {[%clk 0:00:37]}  Rxa7 {[%clk 0:01:17]} 37. b5 {[%clk 0:00:31]}  Kd6 {[%clk 0:01:08]} 38. Kd3 {[%clk 0:00:29]}  f5 {[%clk 0:01:07]} 39. Kc3 {[%clk 0:00:26]}  Ra8 {[%clk 0:01:05]} 40. Kb4 {[%clk 0:00:26]}  f4 {[%clk 0:01:04]} 41. b6 {[%clk 0:00:23]}  h5 {[%clk 0:01:02]} 42. Rc7 {[%clk 0:00:20]}  Rb8 {[%clk 0:01:02]} 43. Rg7 {[%clk 0:00:19]}  Ke6 {[%clk 0:00:52]} 44. Rxg6+ {[%clk 0:00:18]}  Kf7 {[%clk 0:00:52]} 45. Rh6 {[%clk 0:00:17]} 1-0


[Site "https://www.chess.com"]

[Event "Titled Tuesday Blitz December 20 Late 2022"]
[White "Arbunic Castro, Giovanna"]
[Black "Broca Jimenez, Fernando"]
[WhiteFideId "3400549"]
[BlackFideId "5104742"]
[WhiteElo "1962"]
[BlackElo "2062"]
[Result "0-1"]
[Round "05"]
[TimeControl "180+1"]
[Date "2022.12.21"]
[WhiteClock "0:00:02"]
[BlackClock "0:01:01"]

1. e4 {[%clk 0:03:00]}  c5 {[%clk 0:02:53]} 2. g3 {[%clk 0:02:58]}  g6 {[%clk 0:02:53]} 3. Bg2 {[%clk 0:02:58]}  Bg7 {[%clk 0:02:53]} 4. Ne2 {[%clk 0:02:58]}  Nc6 {[%clk 0:02:54]} 5. c3 {[%clk 0:02:57]}  e6 {[%clk 0:02:55]} 6. O-O {[%clk 0:02:56]}  Nge7 {[%clk 0:02:56]} 7. d4 {[%clk 0:02:56]}  O-O {[%clk 0:02:57]} 8. dxc5 {[%clk 0:02:53]}  Qa5 {[%clk 0:02:50]} 9. b4 {[%clk 0:02:23]}  Qc7 {[%clk 0:02:21]} 10. Bf4 {[%clk 0:01:38]}  Qd8 {[%clk 0:02:09]} 11. Bd6 {[%clk 0:01:30]}  Nxb4 {[%clk 0:02:08]} 12. cxb4 {[%clk 0:01:27]}  Bxa1 {[%clk 0:02:06]} 13. Nbc3 {[%clk 0:01:26]}  Bxc3 {[%clk 0:02:01]} 14. Nxc3 {[%clk 0:01:24]}  Re8 {[%clk 0:02:01]} 15. e5 {[%clk 0:01:13]}  Nf5 {[%clk 0:01:55]} 16. Ne4 {[%clk 0:01:12]}  Nxd6 {[%clk 0:01:49]} 17. cxd6 {[%clk 0:01:11]}  Kg7 {[%clk 0:01:46]} 18. Nf6 {[%clk 0:01:05]}  Rf8 {[%clk 0:01:45]} 19. Qg4 {[%clk 0:01:02]}  Rb8 {[%clk 0:01:39]} 20. Qh4 {[%clk 0:00:54]}  h6 {[%clk 0:01:36]} 21. Re1 {[%clk 0:00:49]}  b6 {[%clk 0:01:34]} 22. Bh3 {[%clk 0:00:16]}  Bb7 {[%clk 0:01:30]} 23. f4 {[%clk 0:00:16]}  Rc8 {[%clk 0:01:27]} 24. f5 {[%clk 0:00:15]}  exf5 {[%clk 0:01:13]} 25. Bxf5 {[%clk 0:00:13]}  Rc2 {[%clk 0:01:14]} 26. Bxc2 {[%clk 0:00:12]}  Qc8 {[%clk 0:01:06]} 27. Re2 {[%clk 0:00:07]}  Qc6 {[%clk 0:01:05]} 28. Be4 {[%clk 0:00:03]}  Qc1+ {[%clk 0:01:02]} 29. Kf2 {[%clk 0:00:02]}  Ba6 {[%clk 0:01:01]} 0-1


[Site "https://www.chess.com"]

[Event "Titled Tuesday Blitz December 20 Late 2022"]
[White "Bambino Filho, Antonio Carlos"]
[Black "Nasir, Zehn"]
[WhiteFideId "2113163"]
[BlackFideId "2613239"]
[WhiteElo "2413"]
[BlackElo "1993"]
[Result "0-1"]
[Round "05"]
[TimeControl "180+1"]
[Date "2022.12.21"]
[WhiteClock "0:00:35"]
[BlackClock "0:00:07"]

1. e4 {[%clk 0:03:00]}  c6 {[%clk 0:02:59]} 2. d4 {[%clk 0:02:58]}  d5 {[%clk 0:03:00]} 3. Nc3 {[%clk 0:02:59]}  dxe4 {[%clk 0:02:58]} 4. Nxe4 {[%clk 0:02:59]}  Bf5 {[%clk 0:02:55]} 5. Nc5 {[%clk 0:02:56]}  b6 {[%clk 0:02:54]} 6. Nb3 {[%clk 0:02:55]}  e6 {[%clk 0:02:54]} 7. Bd3 {[%clk 0:02:56]}  Bxd3 {[%clk 0:02:53]} 8. Qxd3 {[%clk 0:02:56]}  Nf6 {[%clk 0:02:53]} 9. Nf3 {[%clk 0:02:55]}  Bd6 {[%clk 0:02:47]} 10. O-O {[%clk 0:02:55]}  O-O {[%clk 0:02:45]} 11. Re1 {[%clk 0:02:55]}  Nbd7 {[%clk 0:02:44]} 12. c4 {[%clk 0:02:54]}  c5 {[%clk 0:02:40]} 13. Bg5 {[%clk 0:02:52]}  Rc8 {[%clk 0:02:24]} 14. Rad1 {[%clk 0:02:51]}  Qc7 {[%clk 0:02:18]} 15. dxc5 {[%clk 0:02:43]}  Bxc5 {[%clk 0:02:10]} 16. Nxc5 {[%clk 0:02:41]}  Qxc5 {[%clk 0:02:07]} 17. b3 {[%clk 0:02:36]}  h6 {[%clk 0:02:05]} 18. Be3 {[%clk 0:02:36]}  Qa5 {[%clk 0:01:56]} 19. Qe2 {[%clk 0:02:35]}  Qh5 {[%clk 0:01:50]} 20. h3 {[%clk 0:02:34]}  Nc5 {[%clk 0:01:47]} 21. Nd4 {[%clk 0:02:29]}  Qxe2 {[%clk 0:01:46]} 22. Nxe2 {[%clk 0:02:28]}  Rfd8 {[%clk 0:01:43]} 23. Nc3 {[%clk 0:02:23]}  Nd3 {[%clk 0:01:35]} 24. Re2 {[%clk 0:02:23]}  Rd7 {[%clk 0:01:20]} 25. Red2 {[%clk 0:02:23]}  Rcd8 {[%clk 0:01:19]} 26. Kf1 {[%clk 0:02:16]}  Kf8 {[%clk 0:01:15]} 27. Ke2 {[%clk 0:02:13]}  Nb4 {[%clk 0:01:15]} 28. Rxd7 {[%clk 0:02:13]}  Rxd7 {[%clk 0:01:16]} 29. Rxd7 {[%clk 0:02:14]}  Nxd7 {[%clk 0:01:16]} 30. a3 {[%clk 0:02:14]}  Nc6 {[%clk 0:01:15]} 31. b4 {[%clk 0:02:09]}  Nce5 {[%clk 0:00:57]} 32. c5 {[%clk 0:02:06]}  bxc5 {[%clk 0:00:56]} 33. Bxc5+ {[%clk 0:01:34]}  Nxc5 {[%clk 0:00:55]} 34. bxc5 {[%clk 0:01:35]}  Ke7 {[%clk 0:00:47]} 35. f4 {[%clk 0:01:24]}  Nc4 {[%clk 0:00:42]} 36. a4 {[%clk 0:01:22]}  Kd7 {[%clk 0:00:39]} 37. Kd3 {[%clk 0:01:22]}  Na5 {[%clk 0:00:36]} 38. Kd4 {[%clk 0:01:20]}  Kc6 {[%clk 0:00:33]} 39. Ne4 {[%clk 0:01:16]}  f6 {[%clk 0:00:24]} 40. g4 {[%clk 0:01:09]}  f5 {[%clk 0:00:23]} 41. gxf5 {[%clk 0:01:06]}  exf5 {[%clk 0:00:24]} 42. Nd6 {[%clk 0:01:03]}  g6 {[%clk 0:00:20]} 43. Nf7 {[%clk 0:01:01]}  Nb3+ {[%clk 0:00:18]} 44. Kc4 {[%clk 0:01:02]}  Nxc5 {[%clk 0:00:17]} 45. Ne5+ {[%clk 0:01:03]}  Kd6 {[%clk 0:00:15]} 46. a5 {[%clk 0:00:49]}  Nb7 {[%clk 0:00:09]} 47. Kb5 {[%clk 0:00:44]}  g5 {[%clk 0:00:09]} 48. Nf7+ {[%clk 0:00:43]}  Ke6 {[%clk 0:00:08]} 49. Nxh6 {[%clk 0:00:37]}  gxf4 {[%clk 0:00:08]} 50. a6 {[%clk 0:00:35]}  Nd6+ {[%clk 0:00:07]} 0-1


[Site "https://www.chess.com"]

[Event "Titled Tuesday Blitz December 20 Late 2022"]
[White "Barria Zuniga, Daniel"]
[Black "Ivanov, Mike"]
[WhiteFideId "3400816"]
[BlackFideId "2613158"]
[WhiteElo "2414"]
[BlackElo "2237"]
[Result "1-0"]
[Round "05"]
[TimeControl "180+1"]
[Date "2022.12.21"]
[WhiteClock "0:01:25"]
[BlackClock "0:01:13"]

1. d4 {[%clk 0:03:00]}  Nf6 {[%clk 0:02:59]} 2. c4 {[%clk 0:03:00]}  e6 {[%clk 0:03:00]} 3. Nf3 {[%clk 0:02:59]}  Bb4+ {[%clk 0:03:00]} 4. Nbd2 {[%clk 0:02:58]}  O-O {[%clk 0:02:59]} 5. g3 {[%clk 0:02:58]}  b6 {[%clk 0:02:58]} 6. Bg2 {[%clk 0:02:58]}  Bb7 {[%clk 0:02:59]} 7. O-O {[%clk 0:02:58]}  Re8 {[%clk 0:02:59]} 8. Qc2 {[%clk 0:02:57]}  d6 {[%clk 0:02:59]} 9. e4 {[%clk 0:02:57]}  Nbd7 {[%clk 0:02:57]} 10. a3 {[%clk 0:02:52]}  Bxd2 {[%clk 0:02:57]} 11. Nxd2 {[%clk 0:02:53]}  e5 {[%clk 0:02:57]} 12. d5 {[%clk 0:02:49]}  a5 {[%clk 0:02:57]} 13. b3 {[%clk 0:02:49]}  Nc5 {[%clk 0:02:57]} 14. Rb1 {[%clk 0:02:46]}  Nfd7 {[%clk 0:02:49]} 15. b4 {[%clk 0:02:46]}  axb4 {[%clk 0:02:47]} 16. axb4 {[%clk 0:02:46]}  Na6 {[%clk 0:02:39]} 17. Qc3 {[%clk 0:02:45]}  g6 {[%clk 0:02:31]} 18. Nb3 {[%clk 0:02:43]}  Qe7 {[%clk 0:02:23]} 19. Be3 {[%clk 0:02:42]}  f5 {[%clk 0:02:22]} 20. f3 {[%clk 0:02:41]}  Rf8 {[%clk 0:02:16]} 21. c5 {[%clk 0:02:36]}  bxc5 {[%clk 0:02:13]} 22. bxc5 {[%clk 0:02:36]}  dxc5 {[%clk 0:02:00]} 23. Na5 {[%clk 0:02:35]}  Bc8 {[%clk 0:02:00]} 24. Bh6 {[%clk 0:02:24]}  Re8 {[%clk 0:01:52]} 25. Nc6 {[%clk 0:02:23]}  Qd6 {[%clk 0:01:51]} 26. f4 {[%clk 0:02:24]}  fxe4 {[%clk 0:01:41]} 27. fxe5 {[%clk 0:02:22]}  Qxd5 {[%clk 0:01:38]} 28. e6 {[%clk 0:01:57]}  Ne5 {[%clk 0:01:37]} 29. Nxe5 {[%clk 0:01:51]}  Qd4+ {[%clk 0:01:15]} 30. Qxd4 {[%clk 0:01:49]}  cxd4 {[%clk 0:01:16]} 31. Bxe4 {[%clk 0:01:36]}  Rb8 {[%clk 0:01:16]} 32. Rxb8 {[%clk 0:01:34]}  Nxb8 {[%clk 0:01:17]} 33. e7 {[%clk 0:01:34]}  Bf5 {[%clk 0:01:13]} 34. Bxf5 {[%clk 0:01:25]} 1-0


[Site "https://www.chess.com"]

[Event "Titled Tuesday Blitz December 20 Late 2022"]
[White "Battlecruiser_Operational"]
[Black "Ankerst, Mihael"]
[BlackFideId "14602369"]
[WhiteElo "2424"]
[BlackElo "2362"]
[Result "1-0"]
[Round "05"]
[TimeControl "180+1"]
[Date "2022.12.21"]
[WhiteClock "0:00:10"]
[BlackClock "0:00:20"]

1. e4 {[%clk 0:03:00]}  c5 {[%clk 0:02:59]} 2. d3 {[%clk 0:02:59]}  Nc6 {[%clk 0:02:58]} 3. g3 {[%clk 0:02:59]}  e6 {[%clk 0:02:57]} 4. Bg2 {[%clk 0:02:58]}  Nf6 {[%clk 0:02:55]} 5. f4 {[%clk 0:02:57]}  d5 {[%clk 0:02:55]} 6. Nd2 {[%clk 0:02:51]}  Be7 {[%clk 0:02:54]} 7. Ngf3 {[%clk 0:02:49]}  O-O {[%clk 0:02:54]} 8. O-O {[%clk 0:02:49]}  b5 {[%clk 0:02:52]} 9. a4 {[%clk 0:02:46]}  b4 {[%clk 0:02:52]} 10. e5 {[%clk 0:02:25]}  Nd7 {[%clk 0:02:51]} 11. Kh1 {[%clk 0:02:20]}  Ba6 {[%clk 0:02:49]} 12. Rf2 {[%clk 0:02:14]}  Rc8 {[%clk 0:02:48]} 13. Nf1 {[%clk 0:02:09]}  Qc7 {[%clk 0:02:45]} 14. g4 {[%clk 0:02:07]}  f6 {[%clk 0:02:37]} 15. exf6 {[%clk 0:02:04]}  Nxf6 {[%clk 0:02:27]} 16. h3 {[%clk 0:02:00]}  Bd6 {[%clk 0:02:25]} 17. Ng5 {[%clk 0:01:16]}  Rce8 {[%clk 0:02:20]} 18. h4 {[%clk 0:01:06]}  h6 {[%clk 0:01:52]} 19. Nh3 {[%clk 0:01:06]}  h5 {[%clk 0:01:53]} 20. gxh5 {[%clk 0:01:00]}  Nd4 {[%clk 0:01:53]} 21. Ng3 {[%clk 0:00:53]}  Nf5 {[%clk 0:01:15]} 22. Nxf5 {[%clk 0:00:52]}  exf5 {[%clk 0:01:16]} 23. Bd2 {[%clk 0:00:42]}  Bb7 {[%clk 0:01:12]} 24. Bf3 {[%clk 0:00:35]}  d4 {[%clk 0:01:11]} 25. Kg1 {[%clk 0:00:23]}  Re3 {[%clk 0:01:11]} 26. Bxe3 {[%clk 0:00:22]}  dxe3 {[%clk 0:01:12]} 27. Rg2 {[%clk 0:00:21]}  Bxf4 {[%clk 0:01:09]} 28. Nxf4 {[%clk 0:00:20]}  Qxf4 {[%clk 0:01:08]} 29. Bxb7 {[%clk 0:00:19]}  Ng4 {[%clk 0:01:09]} 30. Qf3 {[%clk 0:00:18]}  Qc7 {[%clk 0:01:03]} 31. Bd5+ {[%clk 0:00:18]}  Kh8 {[%clk 0:01:02]} 32. Re1 {[%clk 0:00:17]}  c4 {[%clk 0:00:58]} 33. Rxg4 {[%clk 0:00:17]}  cxd3 {[%clk 0:00:48]} 34. cxd3 {[%clk 0:00:17]}  f4 {[%clk 0:00:28]} 35. Rg6 {[%clk 0:00:12]}  Qe5 {[%clk 0:00:28]} 36. h6 {[%clk 0:00:09]}  gxh6 {[%clk 0:00:26]} 37. Be4 {[%clk 0:00:05]}  Rf6 {[%clk 0:00:25]} 38. Qg4 {[%clk 0:00:04]}  Rxg6 {[%clk 0:00:02]} 39. Qxg6 {[%clk 0:00:05]}  Qg7 {[%clk 0:00:03]} 40. Qxg7+ {[%clk 0:00:06]}  Kxg7 {[%clk 0:00:03]} 41. h5 {[%clk 0:00:07]}  Kf6 {[%clk 0:00:04]} 42. b3 {[%clk 0:00:07]}  Ke5 {[%clk 0:00:05]} 43. Kg2 {[%clk 0:00:08]}  Kd4 {[%clk 0:00:05]} 44. Kf3 {[%clk 0:00:09]}  Kc3 {[%clk 0:00:06]} 45. Kxf4 {[%clk 0:00:08]}  Kd2 {[%clk 0:00:06]} 46. Rg1 {[%clk 0:00:08]}  e2 {[%clk 0:00:07]} 47. d4 {[%clk 0:00:08]}  e1=Q {[%clk 0:00:07]} 48. Rxe1 {[%clk 0:00:08]}  Kxe1 {[%clk 0:00:08]} 49. d5 {[%clk 0:00:09]}  Kd2 {[%clk 0:00:09]} 50. d6 {[%clk 0:00:09]}  Kc3 {[%clk 0:00:10]} 51. Bd5 {[%clk 0:00:10]}  Kb2 {[%clk 0:00:10]} 52. Bc4 {[%clk 0:00:10]}  a5 {[%clk 0:00:09]} 53. d7 {[%clk 0:00:11]}  Ka3 {[%clk 0:00:10]} 54. d8=Q {[%clk 0:00:11]}  Ka2 {[%clk 0:00:10]} 55. Qxa5 {[%clk 0:00:11]}  Ka3 {[%clk 0:00:11]} 56. Qc5 {[%clk 0:00:11]}  Ka2 {[%clk 0:00:11]} 57. Qxb4 {[%clk 0:00:12]}  Kb2 {[%clk 0:00:12]} 58. Qd6 {[%clk 0:00:12]}  Ka2 {[%clk 0:00:13]} 59. Qxh6 {[%clk 0:00:12]}  Kb2 {[%clk 0:00:13]} 60. Qg6 {[%clk 0:00:12]}  Ka3 {[%clk 0:00:14]} 61. h6 {[%clk 0:00:13]}  Ka2 {[%clk 0:00:15]} 62. h7 {[%clk 0:00:13]}  Ka3 {[%clk 0:00:16]} 63. Qd3 {[%clk 0:00:13]}  Ka2 {[%clk 0:00:17]} 64. a5 {[%clk 0:00:14]}  Ka3 {[%clk 0:00:17]} 65. a6 {[%clk 0:00:14]}  Ka2 {[%clk 0:00:18]} 66. a7 {[%clk 0:00:14]}  Kb2 {[%clk 0:00:19]} 67. h8=Q+ {[%clk 0:00:14]}  Kc1 {[%clk 0:00:18]} 68. Qh1+ {[%clk 0:00:11]}  Kb2 {[%clk 0:00:19]} 69. Qhb1+ {[%clk 0:00:11]}  Ka3 {[%clk 0:00:20]} 70. Qd6# {[%clk 0:00:10]} 1-0


[Site "https://www.chess.com"]

[Event "Titled Tuesday Blitz December 20 Late 2022"]
[White "Begmuratov, Khumoyun"]
[Black "Vega Gutierrez, Sabrina"]
[WhiteFideId "14210207"]
[BlackFideId "2219026"]
[WhiteElo "2267"]
[BlackElo "2261"]
[Result "1-0"]
[Round "05"]
[TimeControl "180+1"]
[Date "2022.12.21"]
[WhiteClock "0:02:15"]
[BlackClock "0:00:02"]

1. e4 {[%clk 0:03:00]}  c5 {[%clk 0:02:59]} 2. Nc3 {[%clk 0:03:00]}  e6 {[%clk 0:02:59]} 3. g3 {[%clk 0:02:59]}  Nc6 {[%clk 0:02:49]} 4. Bg2 {[%clk 0:02:59]}  g6 {[%clk 0:02:50]} 5. d3 {[%clk 0:02:59]}  Bg7 {[%clk 0:02:50]} 6. f4 {[%clk 0:02:59]}  d6 {[%clk 0:02:50]} 7. Nf3 {[%clk 0:02:58]}  Nge7 {[%clk 0:02:34]} 8. O-O {[%clk 0:02:57]}  O-O {[%clk 0:02:30]} 9. a4 {[%clk 0:02:54]}  Rb8 {[%clk 0:02:18]} 10. Bd2 {[%clk 0:02:53]}  a6 {[%clk 0:02:17]} 11. Qc1 {[%clk 0:02:43]}  b5 {[%clk 0:02:16]} 12. axb5 {[%clk 0:02:43]}  axb5 {[%clk 0:02:16]} 13. Nd1 {[%clk 0:02:44]}  b4 {[%clk 0:02:12]} 14. Nf2 {[%clk 0:02:40]}  Nd4 {[%clk 0:02:05]} 15. Nxd4 {[%clk 0:02:37]}  cxd4 {[%clk 0:02:05]} 16. c3 {[%clk 0:02:19]}  bxc3 {[%clk 0:01:56]} 17. bxc3 {[%clk 0:02:20]}  dxc3 {[%clk 0:01:54]} 18. Bxc3 {[%clk 0:02:21]}  Bxc3 {[%clk 0:01:47]} 19. Qxc3 {[%clk 0:02:22]}  Qb6 {[%clk 0:01:47]} 20. Kh1 {[%clk 0:02:17]}  Bd7 {[%clk 0:01:34]} 21. Ng4 {[%clk 0:02:16]}  f5 {[%clk 0:00:02]} 22. Nh6# {[%clk 0:02:15]} 1-0


[Site "https://www.chess.com"]

[Event "Titled Tuesday Blitz December 20 Late 2022"]
[White "Bolanos, Fernando"]
[Black "Sarkar, Justin"]
[WhiteFideId "3304094"]
[BlackFideId "2010011"]
[WhiteElo "2166"]
[BlackElo "2239"]
[Result "0-1"]
[Round "05"]
[TimeControl "180+1"]
[Date "2022.12.21"]
[WhiteClock "0:00:01"]
[BlackClock "0:00:07"]

1. e4 {[%clk 0:02:31]}  e5 {[%clk 0:02:58]} 2. Nf3 {[%clk 0:02:24]}  Nc6 {[%clk 0:02:58]} 3. Bb5 {[%clk 0:02:23]}  a6 {[%clk 0:02:57]} 4. Ba4 {[%clk 0:02:22]}  Nf6 {[%clk 0:02:56]} 5. O-O {[%clk 0:02:17]}  Be7 {[%clk 0:02:52]} 6. Re1 {[%clk 0:02:10]}  b5 {[%clk 0:02:51]} 7. Bb3 {[%clk 0:02:10]}  d6 {[%clk 0:02:51]} 8. d3 {[%clk 0:02:09]}  Na5 {[%clk 0:02:44]} 9. Nc3 {[%clk 0:01:56]}  O-O {[%clk 0:02:34]} 10. h3 {[%clk 0:01:56]}  Bb7 {[%clk 0:02:18]} 11. Bd5 {[%clk 0:01:29]}  c6 {[%clk 0:01:56]} 12. Bb3 {[%clk 0:01:28]}  Nxb3 {[%clk 0:01:51]} 13. axb3 {[%clk 0:01:26]}  c5 {[%clk 0:01:48]} 14. Ne2 {[%clk 0:01:15]}  Nd7 {[%clk 0:01:38]} 15. Ng3 {[%clk 0:01:15]}  g6 {[%clk 0:01:37]} 16. Bh6 {[%clk 0:01:12]}  Re8 {[%clk 0:01:37]} 17. Qd2 {[%clk 0:01:10]}  Nf8 {[%clk 0:00:49]} 18. Re2 {[%clk 0:00:49]}  Ne6 {[%clk 0:00:48]} 19. Rf1 {[%clk 0:00:49]}  a5 {[%clk 0:00:43]} 20. Nh2 {[%clk 0:00:48]}  a4 {[%clk 0:00:37]} 21. bxa4 {[%clk 0:00:40]}  Rxa4 {[%clk 0:00:36]} 22. f4 {[%clk 0:00:28]}  exf4 {[%clk 0:00:32]} 23. Bxf4 {[%clk 0:00:28]}  Nxf4 {[%clk 0:00:25]} 24. Qxf4 {[%clk 0:00:28]}  Rf8 {[%clk 0:00:25]} 25. Kh1 {[%clk 0:00:22]}  d5 {[%clk 0:00:22]} 26. Ng4 {[%clk 0:00:20]}  dxe4 {[%clk 0:00:19]} 27. dxe4 {[%clk 0:00:20]}  f5 {[%clk 0:00:15]} 28. Nh6+ {[%clk 0:00:07]}  Kh8 {[%clk 0:00:14]} 29. b3 {[%clk 0:00:01]}  Ra2 {[%clk 0:00:07]} 0-1


[Site "https://www.chess.com"]

[Event "Titled Tuesday Blitz December 20 Late 2022"]
[White "Boruchovsky, Avital"]
[Black "Sebag, Marie"]
[WhiteFideId "2800055"]
[BlackFideId "617822"]
[WhiteElo "2450"]
[BlackElo "2440"]
[Result "0-1"]
[Round "05"]
[TimeControl "180+1"]
[Date "2022.12.21"]
[WhiteClock "0:00:09"]
[BlackClock "0:00:55"]

1. c4 {[%clk 0:02:53]}  c6 {[%clk 0:02:59]} 2. e4 {[%clk 0:02:53]}  d5 {[%clk 0:02:59]} 3. cxd5 {[%clk 0:02:53]}  cxd5 {[%clk 0:02:59]} 4. exd5 {[%clk 0:02:54]}  Nf6 {[%clk 0:02:59]} 5. Nc3 {[%clk 0:02:55]}  g6 {[%clk 0:02:57]} 6. Nf3 {[%clk 0:02:56]}  Bg7 {[%clk 0:02:52]} 7. Bc4 {[%clk 0:02:56]}  O-O {[%clk 0:02:51]} 8. O-O {[%clk 0:02:55]}  Nbd7 {[%clk 0:02:50]} 9. d4 {[%clk 0:02:52]}  Nb6 {[%clk 0:02:50]} 10. Qb3 {[%clk 0:02:52]}  Nxc4 {[%clk 0:02:45]} 11. Qxc4 {[%clk 0:02:53]}  b6 {[%clk 0:02:45]} 12. Ne5 {[%clk 0:02:51]}  Bb7 {[%clk 0:02:42]} 13. Nc6 {[%clk 0:02:51]}  Qd7 {[%clk 0:02:39]} 14. b4 {[%clk 0:02:42]}  a6 {[%clk 0:02:34]} 15. Re1 {[%clk 0:02:33]}  Rfe8 {[%clk 0:02:33]} 16. Bg5 {[%clk 0:02:18]}  Rac8 {[%clk 0:02:27]} 17. Qb3 {[%clk 0:02:01]}  Nxd5 {[%clk 0:01:43]} 18. Nxd5 {[%clk 0:01:09]}  Qxc6 {[%clk 0:01:34]} 19. Nf4 {[%clk 0:01:08]}  Bxd4 {[%clk 0:01:20]} 20. Rad1 {[%clk 0:01:06]}  e5 {[%clk 0:01:18]} 21. b5 {[%clk 0:00:45]}  axb5 {[%clk 0:01:16]} 22. Rxd4 {[%clk 0:00:20]}  exf4 {[%clk 0:01:04]} 23. Rxe8+ {[%clk 0:00:19]}  Rxe8 {[%clk 0:01:03]} 24. f3 {[%clk 0:00:18]}  Qc1+ {[%clk 0:00:59]} 25. Rd1 {[%clk 0:00:11]}  Re1+ {[%clk 0:00:58]} 26. Kf2 {[%clk 0:00:09]}  Qxd1 {[%clk 0:00:55]} 0-1


[Site "https://www.chess.com"]

[Event "Titled Tuesday Blitz December 20 Late 2022"]
[White "Can, Melih Kaan"]
[Black "Omelja, Artem"]
[WhiteFideId "6317383"]
[BlackFideId "14119846"]
[WhiteElo "2010"]
[BlackElo "2404"]
[Result "0-1"]
[Round "05"]
[TimeControl "180+1"]
[Date "2022.12.21"]
[WhiteClock "0:00:01"]
[BlackClock "0:00:15"]

1. d4 {[%clk 0:02:45]}  Nf6 {[%clk 0:02:58]} 2. c4 {[%clk 0:02:45]}  e6 {[%clk 0:02:49]} 3. Nc3 {[%clk 0:02:45]}  d5 {[%clk 0:02:39]} 4. Nf3 {[%clk 0:02:41]}  c6 {[%clk 0:02:39]} 5. e3 {[%clk 0:02:40]}  Nbd7 {[%clk 0:02:39]} 6. Qc2 {[%clk 0:02:37]}  Be7 {[%clk 0:02:37]} 7. Bd3 {[%clk 0:02:34]}  O-O {[%clk 0:02:36]} 8. O-O {[%clk 0:02:30]}  Re8 {[%clk 0:01:48]} 9. b3 {[%clk 0:02:27]}  b6 {[%clk 0:01:41]} 10. e4 {[%clk 0:02:26]}  dxe4 {[%clk 0:01:42]} 11. Nxe4 {[%clk 0:02:27]}  Bb7 {[%clk 0:01:42]} 12. Bb2 {[%clk 0:02:26]}  Nxe4 {[%clk 0:01:41]} 13. Bxe4 {[%clk 0:02:26]}  Nf6 {[%clk 0:01:42]} 14. Bd3 {[%clk 0:01:23]}  h6 {[%clk 0:01:38]} 15. Rad1 {[%clk 0:01:21]}  Qc7 {[%clk 0:01:37]} 16. Ne5 {[%clk 0:01:17]}  c5 {[%clk 0:01:36]} 17. dxc5 {[%clk 0:01:12]}  Bxc5 {[%clk 0:01:34]} 18. Rfe1 {[%clk 0:01:08]}  Rad8 {[%clk 0:01:33]} 19. h3 {[%clk 0:01:08]}  a5 {[%clk 0:01:19]} 20. Qe2 {[%clk 0:01:07]}  Kf8 {[%clk 0:01:13]} 21. Bb1 {[%clk 0:01:04]}  Rxd1 {[%clk 0:01:11]} 22. Rxd1 {[%clk 0:01:04]}  Rd8 {[%clk 0:01:11]} 23. a3 {[%clk 0:00:40]}  Ke7 {[%clk 0:00:56]} 24. Ng4 {[%clk 0:00:29]}  Rxd1+ {[%clk 0:00:51]} 25. Qxd1 {[%clk 0:00:28]}  Qg3 {[%clk 0:00:43]} 26. Bxf6+ {[%clk 0:00:07]}  gxf6 {[%clk 0:00:43]} 27. Qf1 {[%clk 0:00:03]}  Qxb3 {[%clk 0:00:38]} 28. Nxh6 {[%clk 0:00:03]}  Qxa3 {[%clk 0:00:28]} 29. Ng8+ {[%clk 0:00:03]}  Kf8 {[%clk 0:00:27]} 30. Nxf6 {[%clk 0:00:04]}  Bd4 {[%clk 0:00:22]} 31. Ne4 {[%clk 0:00:03]}  f5 {[%clk 0:00:18]} 32. Ng5 {[%clk 0:00:03]}  Ke7 {[%clk 0:00:17]} 33. Qe1 {[%clk 0:00:02]}  e5 {[%clk 0:00:15]} 34. Bxf5 {[%clk 0:00:01]}  Qg3 {[%clk 0:00:15]} 0-1


[Site "https://www.chess.com"]